Cogmind - Beta 16 @@@ ROGUE MODE // 2025.12.02 @ 19:51:48 Player: Vyckalino Result: Destroyed by G-34 Mercenary with Small Laser Performance ------------- Evolutions (1) 500 Regions Visited (3) 600 Robots Destroyed (20) 100 Value Destroyed (459) 459 Prototype IDs (0) 0 Alien Tech Used (0) 0 Bonus (0) 0 TOTAL SCORE: 1659 Bonus ------- None Cogmind --------- Core Integrity 0/400 Matter 112/300 Energy 100/100 System Corruption 0% Temperature Cool (15) Movement Treading (160) Location -9/Materials Parts ------- > --- POWER (2) -------- (None) > --- PROPULSION (3) --- Improved Treads > --- UTILITY (2) ------ Medium Storage Unit Power Shielding > --- WEAPON (2) ------- (None) > --- INVENTORY (10) --- (None) Peak State ------------ > --- POWER ------------ Ion Engine Light Nuclear Core > --- PROPULSION ------- Improved Treads Improved Treads Improved Treads > --- UTILITY ---------- ECM Suite Power Shielding > --- WEAPON ----------- Rocket Launcher > --- INVENTORY -------- Improved Heat Sink Light Assault Rifle Light Assault Rifle [Rating: 14] Favorites ----------- Power Light Nuclear Core Engine Light Ion Engine Power Core Light Nuclear Core Propulsion Aluminum Leg Treads Improved Treads Leg Aluminum Leg Wheel Wheel Utility ECM Suite Device ECM Suite Storage Medium Storage Unit Protection Power Shielding Weapon Light Assault Rifle Energy Gun EM Pulse Gun Energy Cannon Beam Cannon Ballistic Gun Light Assault Rifle Launcher Rocket Launcher Build | -11 -10 -10 -9 ------- Run | Yrd Mat Min Mat Slots Evolved 2 | . . . 2 Power 1 | . . . 1 Propulsion 1 | . . . 1 Utility . | . . . . Weapon . | . . . . Parts Attached 35 | 7 4 10 14 Power 6 | 1 1 3 1 Engine 5 | 1 1 2 1 Core 1 | . . 1 . Reactor . | . . . . Propulsion 15 | 4 . 1 10 Treads 4 | . . . 4 Leg 8 | 2 . . 6 Wheel 3 | 2 . 1 . Hover . | . . . . Flight . | . . . . Utility 6 | . 2 2 2 Device 3 | . 2 1 . Storage 2 | . . . 2 Processor . | . . . . Hackware . | . . . . Protection 1 | . . 1 . Artifact . | . . . . Weapon 8 | 2 1 4 1 Energy Gun 3 | 2 . 1 . Energy Cannon 1 | . 1 . . Ballistic Gun 2 | . . 2 . Ballistic Cannon . | . . . . Launcher 2 | . . 1 1 Special Weapon . | . . . . Impact Weapon . | . . . . Slashing Weapon . | . . . . Piercing Weapon . | . . . . Special Melee Weapon . | . . . . Unidentified Prototypes . | . . . . Parts Lost 16 | . . 4 12 Power 4 | . . 2 2 Propulsion 6 | . . . 6 Utility 1 | . . . 1 Weapon 5 | . . 2 3 Highest Loss Streak 11 | . . 2 11 To Critical Strikes . | . . . . Average Backups 3 | 2 3 3 3 Power . | . . . . Propulsion 1 | 1 2 1 1 Utility . | . . . . Weapon 1 | . . 1 1 Tool/Special . | . . . . Unused Backups 5 | 1 1 3 . Power . | . . . . Propulsion 2 | 1 . 1 . Utility 1 | . . 1 . Weapon 2 | . 1 1 . Tool/Special . | . . . . Average Slot Usage (%) 86 | . 86 94 74 Engine 8 | . 14 6 7 Core 6 | . . 6 8 Treads 3 | . . . 9 Leg 16 | . 28 14 14 Wheel 7 | . . 13 3 Device 16 | . 14 22 7 Storage 1 | . . . 4 Protection 4 | . . 2 8 Energy Gun 5 | . 19 4 . Energy Cannon 3 | . 8 4 . Ballistic Gun 8 | . . 15 1 Launcher 3 | . . 2 7 Peak Build Rating 14 | 5 7 11 14 Average Rating 8 | 3 6 8 10 On Entrance 5 | . 5 7 10 Avg Prop Armor Cover (%) 12 | . . . 12 Naked Turns . | . . . . Heaviest Build 26 | 7 12 12 26 Greatest Support 69 | 20 20 26 69 Greatest Overweight (x) 1 | . . . 1 Average Overweight (x) . | . . . . Largest Inventory Capacity 25 | 5 5 5 25 Average Capacity 5 | 5 5 5 7 Most Carried 6 | 5 5 5 6 Average Carried 3 | 2 3 3 3 Final Capacity 10 | 5 5 5 10 Final Carried 4 | 4 2 3 . Class Distribution -------------------- 88% | Mutant 11% | Scavenger-Mutant Dominant Class ---------------- Mutant | -10/Materials Mutant | -10/Mines Mutant | -9/Materials Resources | -11 -10 -10 -9 ----------- Run | Yrd Mat Min Mat Matter Collected 587 | 280 25 172 110 Remotely . | . . . . Salvage Created 413 | 67 25 201 120 Parts 37 | 6 . 16 15 Haulers Intercepted . | . . . . Recyclers Shooed . | . . . . Parts Field Recycled . | . . . . Retrieved Matter . | . . . . Parts Self-Destructed . | . . . . Prevented . | . . . . Parts Restored . | . . . . Kills | -11 -10 -10 -9 ------- Run | Yrd Mat Min Mat Combat Hostiles Destroyed 15 | 1 . 6 8 Melee 1 | . . . 1 Guns 3 | 1 . 2 . Cannons 2 | . . 2 . AOE 9 | . . 2 7 Classes Destroyed 6 | 3 1 1 1 Worker 3 | 1 . 1 1 Tunneler 1 | 1 . . . Watcher 1 | . 1 . . Swarmer 6 | . . 2 4 Grunt 8 | 1 . 4 3 Sentry 1 | . . . 1 Best Kill Streak 7 | 1 1 3 7 Combat Bots Only 6 | 1 . 2 6 Max Kills in Single Turn 1 | 1 1 1 1 Gunslinging . | . . . . Exploded 1 | . . 1 1 Melee 1 | . . . 1 Uniques/NPCs Destroyed . | . . . . Combat | -11 -10 -10 -9 -------- Run | Yrd Mat Min Mat Hostile Shots Fired 209 | 4 . 67 138 Missed 50 | 1 . 18 31 Hits 159 | 3 . 49 107 Projectile 159 | 3 . 49 107 Critical Strikes 6 | . . 2 4 Damage Taken 2139 | 30 35 573 1501 Core 622 | . . 222 400 Absorbed by Shields . | . . . . Redirected to Shielding 2 | . . 2 . Core Remaining (%) 55 | 100 . 11 . Volleys Fired 64 | 11 6 30 17 Largest 2 | 2 2 2 2 Hottest 100 | 90 100 100 40 Shots Fired 104 | 22 12 51 19 Gun 66 | 22 8 32 4 Cannon 20 | . 4 16 . Launcher 18 | . . 3 15 Special . | . . . . Kinetic 29 | . . 25 4 Thermal 33 | 11 6 16 . Explosive 18 | . . 3 15 Electromagnetic 24 | 11 6 7 . Robot Hit Streak 10 | 6 3 10 2 Robot Miss Streak 6 | 5 3 5 6 Penetration Max . | . . . . Secondary Targets 1 | . . 1 . Max Gunslinging Chain 1 | . . 1 . Shots Hit Robots 51 | 11 6 27 7 Core Hits 37 | 4 1 15 17 Critical Kills . | . . . . Critical Parts Destroyed . | . . . . Critical Strikes . | . . . . Melee Attacks . | . . . . Impact . | . . . . Slashing . | . . . . Piercing . | . . . . Sneak Attacks . | . . . . Combat Hostiles . | . . . . Follow-up Attacks . | . . . . Damage Inflicted 1233 | 150 125 382 576 Guns 382 | 150 48 165 19 Cannons 158 | . 53 105 . Explosions 676 | . 22 108 546 Melee . | . . . . Ramming 17 | . 2 4 11 Kinetic 174 | . . 155 19 Thermal 257 | 51 101 105 . Explosive 613 | . . 108 505 Electromagnetic 172 | 99 22 10 41 Impact . | . . . . Slashing . | . . . . Piercing . | . . . . Highest Corruption . | . . . . Average Corruption . | . . . . Corruption Purged . | . . . . Corruption Blocked . | . . . . Overload Shots . | . . . . Overflow Damage 78 | . 19 12 47 Projectiles 10 | . 10 . . Explosions 68 | . 9 12 47 Melee . | . . . . Knockbacks . | . . . . Impact . | . . . . Kinetic . | . . . . Secondary . | . . . . Self-Inflicted Damage 274 | . 35 74 165 Shots 9 | . 1 3 5 Rammed 4 | . . . 4 Targets Rammed 7 | . 1 1 5 Kicked 2 | . 1 1 . Crushed 1 | . . . 1 Highest Temperature 317 | 174 79 317 40 Average Temperature 89 | 98 39 134 13 Received Heat Transfer 741 | 18 . 129 594 Effects 1 | . . 1 . Energy Bleed 1 | . . 1 . Siege Activations . | . . . . Martial Activations . | . . . . Shielding Activations . | . . . . Robots Disrupted . | . . . . Combat Hostiles . | . . . . Robots Corrupted . | . . . . Combat Hostiles . | . . . . Parts Fried . | . . . . Impact Corruptions . | . . . . Robots Melted . | . . . . Combat Hostiles . | . . . . Parts Melted 1 | . . 1 . Heat Transferred 605 | 148 235 222 . Parts Sabotaged . | . . . . Parts Stolen . | . . . . Parts Stripped . | . . . . Power Chain Reactions 1 | . 1 . . Alert | -11 -10 -10 -9 ------- Run | Yrd Mat Min Mat Maximum Alert Level . | . . . . Low Security (%) 100 | 100 100 100 100 Level 1 . | . . . . Level 2 . | . . . . Level 3 . | . . . . Level 4 . | . . . . Level 5 . | . . . . High Security . | . . . . Max Security . | . . . . Peak Influence 138 | 20 18 72 138 Initial 24 | . 9 . 24 Average 14 | 4 4 10 26 Influence Increases 513 | 30 25 190 268 Destroy 0b10 Robot/C 300 | 20 . 120 160 Destroy 0b10 Robot/NC 25 | 10 5 5 5 Destroy Leader 52 | . 2 30 20 Disable Machine 45 | . 15 . 30 Destroy Structure 76 | . 3 20 53 Partial Spotted 15 | . . 15 . Influence Decreases 491 | 15 40 126 310 Entered New Map 46 | . 6 . 40 Time Decay 315 | 15 34 116 150 Lost Part 130 | . . 10 120 Squads Dispatched 2 | . 1 . 1 Investigation 1 | . . . 1 Extermination . | . . . . Reinforcement 1 | . 1 . . Assault . | . . . . Garrison . | . . . . Intercept . | . . . . Searches Triggered . | . . . . Construction Impeded . | . . . . Haulers Reinforced . | . . . . Active Scanning Responses . | . . . . Cargo Convoy Interrupts . | . . . . Stealth | -11 -10 -10 -9 --------- Run | Yrd Mat Min Mat Distress Signals 1 | . . . 1 Communications Jammed . | . . . . Distress Signals . | . . . . Times Spotted 23 | 1 3 7 12 Peak Tracking Total 9 | 1 2 3 9 Tactical Retreats . | . . . . Traps | -11 -10 -10 -9 ------- Run | Yrd Mat Min Mat Traps Triggered . | . . . . Indirectly . | . . . . Trap Hack Attempts . | . . . . Triggered . | . . . . Disarmed . | . . . . Reprogrammed . | . . . . Reused . | . . . . Traps Extracted . | . . . . Installed . | . . . . Triggered . | . . . . Machines | -11 -10 -10 -9 ---------- Run | Yrd Mat Min Mat Machines Disabled 3 | . 1 . 2 Max in Single Turn 1 | . 1 . 1 Machines Repaired . | . . . . Machines Dismantled . | . . . . Machines Sabotaged . | . . . . Overloaded Fab Kills . | . . . . Hacking | -11 -10 -10 -9 --------- Run | Yrd Mat Min Mat Machines Accessed 3 | . 1 . 2 Terminals 1 | . . . 1 Fabricators . | . . . . Repair Stations . | . . . . Recycling Units 2 | . 1 . 1 Scanalyzers . | . . . . Garrison Access . | . . . . Total Hacks 16 | . 4 . 12 Successful 12 | . 3 . 9 Failed 3 | . 1 . 2 Catastrophic . | . . . . Database Lockouts 1 | . . . 1 Manual . | . . . . Terminals 8 | . . . 8 Fabricators . | . . . . Repair Stations . | . . . . Recycling Units 8 | . 4 . 4 Scanalyzers . | . . . . Garrison Access . | . . . . Terminal Hacks 7 | . . . 7 Record 7 | . . . 7 Fabricator Hacks . | . . . . Repair Station Hacks . | . . . . Recycling Unit Hacks 5 | . 3 . 2 Recycle Component 1 | . 1 . . Process 3 | . 2 . 1 Retrieve Matter 1 | . . . 1 Scanalyzer . | . . . . Garrison Access Hacks . | . . . . Unauthorized Hacks . | . . . . Terminals . | . . . . Fabricators . | . . . . Repair Stations . | . . . . Recycling Units . | . . . . Scanalyzers . | . . . . Garrison Access . | . . . . Data Cores Recovered . | . . . . Used . | . . . . Hacking Detections 3 | . 1 . 2 Full Trace Events 3 | . 1 . 2 Feedback Events . | . . . . Feedback Blocked . | . . . . Robot Schematics Acquired . | . . . . Robots Built . | . . . . Authchips . | . . . . Time . | . . . . Total Robot Build Rating . | . . . . Part Schematics Acquired . | . . . . Parts Built . | . . . . Authchips . | . . . . Time . | . . . . Total Part Build Rating . | . . . . Part Studies Acquired . | . . . . Parts Repaired . | . . . . Time . | . . . . Parts Recycled 1 | . 1 . . Recycled Matter 97 | . 97 . . Retrieved Matter . | . . . . Retrieved Components . | . . . . Parts Scanalyzed . | . . . . Part Schematics Acquired . | . . . . Parts Damaged . | . . . . Bothacking | -11 -10 -10 -9 ------------ Run | Yrd Mat Min Mat Used RIF Installer . | . . . . Robots Hacked . | . . . . Non-combat . | . . . . Combat . | . . . . Robot Hacks Applied . | . . . . Relay Couplers Released . | . . . . Fabnet Peak Effective % . | . . . . Robots Rewired . | . . . . Allies Hacked . | . . . . Hacks Repelled . | . . . . Allies | -11 -10 -10 -9 -------- Run | Yrd Mat Min Mat Total Allies . | . . . . Largest Group . | . . . . Highest-Rated Group . | . . . . Highest-Rated Ally . | . . . . Total Orders . | . . . . Ally Attacks . | . . . . Total Damage . | . . . . Kills . | . . . . Allies Corrupted . | . . . . Allies Melted . | . . . . Intel | -11 -10 -10 -9 ------- Run | Yrd Mat Min Mat Active Infowar (turns) 872 | . 87 484 301 ECM 872 | . 87 484 301 Robot Analysis Total . | . . . . Derelict Logs Recovered 1 | . . 1 . Drone Launches . | . . . . Drone Recoveries . | . . . . Exploration | -11 -10 -10 -9 ------------- Run | Yrd Mat Min Mat Turns Passed 1282 | 139 164 556 423 Spaces Moved 805 | 83 80 386 256 Core 20 | 20 . . . Treads 72 | . . . 72 Legs 440 | 58 80 169 133 Wheels 273 | 5 . 217 51 Hover . | . . . . Flight . | . . . . Fastest Speed 50 | 50 120 80 90 Average Speed 110 | 100 120 97 129 Slowest Speed 190 | 120 120 120 190 Overloaded Moves . | . . . . Propulsion Burnouts . | . . . . Robots Hopped . | . . . . Potential Cave-ins . | . . . . Cave-ins Triggered . | . . . . Exploration Rate (%) 27 | 5 16 71 17 Regions Visited 3 Branch Regions 1 Pre-discovered Areas . | . . . . Known Exits Taken . | . . . . Unknown Exits Taken 3 | 1 1 1 . Scrap Searched . | . . . . Spaces Dug . | . . . . Terrain Destroyed 103 | . 2 23 78 Melee . | . . . . Projectile . | . . . . AOE 103 | . 2 23 78 Terrain Rammed . | . . . . Walls Destroyed . | . . . . Machines Disabled . | . . . . Actions | -11 -10 -10 -9 --------- Run | Yrd Mat Min Mat Total 1104 | 119 136 520 329 Wait 107 | . 41 63 3 Move 802 | 82 79 385 256 Hop . | . . . . Pick Up 44 | 12 3 15 14 Fast Attach 2 | . . 1 1 Attach 25 | 8 3 5 9 Detach 6 | 3 . 2 1 Swap 18 | . 1 7 10 Drop 29 | 3 2 11 13 Fire 64 | 11 6 30 17 Melee . | . . . . Ram . | . . . . Kick 2 | . 1 1 . Crush 5 | . . . 5 Escape Stasis . | . . . . Rewire . | . . . . Trap . | . . . . Miscellaneous . | . . . . Route ------- -11/Scrapyard -10/Materials -10/Mines -9/Materials History --------- Turn | Location | Event 2 | -11/Scrapyard | Met Revision 17 92 | -11/Scrapyard | Discovered new exit (range 8) 140 | -11/Scrapyard | Entered Materials 296 | -10/Materials | Discovered new exit (range 8) 304 | -10/Materials | Entered Mines 305 | -10/Mines | Build established: Mutant 318 | -10/Mines | A weapon hastily lodged in a ceiling crevice suddenly fell to the ground 566 | -10/Mines | Core integrity fell below 50% 589 | -10/Mines | Core integrity fell below 20% 835 | -10/Mines | Discovered new exit (range 8) 860 | -10/Mines | Entered Materials 860 | -9/Materials | Evolved 2 slots: Power x1, Propulsion x1 879 | -9/Materials | Central database locked down 1203 | -9/Materials | Core integrity fell below 50% 1266 | -9/Materials | Lost 11 parts (2p5n1u3w) 1272 | -9/Materials | Core integrity fell below 20% 1283 | -9/Materials | Destroyed by G-34 Mercenary with Small Laser Last Messages --------------- recycling unit. Recycling unit begins recycling process. R-06 Scavenger inserts Lgt. Ion Engine into recycling unit. Acquired Imp. Treads. G-47 Trooper destroyed. R-06 Scavenger collects Imp. Heat Sink. Aluminum Leg destroyed. Slammed into Y-45 Defender. Slammed into G-34 Mercenary. Crushed G-34 Mercenary. G-34 Mercenary destroyed. R-06 Scavenger collects Heat Sink. Acquired 45 matter. Slammed into G-34 Mercenary. [Achievement: First Step to Greatness] The achievement interface (ESC then open Records) offers an effective way to explore all of your earned achievements as well as seek out new goals for future runs. Map ----- +----------------------------------------------------+ | """ #?# #????????? | | #?# #????????? | | #?# #????????? | | #?# #????????? | | ### ####?????? | | # # #?????? | | ## ##### #?????? | | # #??# " #?????? | | # #??# +?????? | | #??# #?????? | | # # #??# #?????? | | ####### ##??### ###?????? | | ?# # ##?????# #???????? | | ?# """ # #??????# #???????? | | ?# """"" # ##?????# #???????? | | ?# """"" + ####### ######??? | | ?# """"" # !## ##?? | | ?# """ # # #?? | | ?# # " ### #?? | | ?# # "" # ###### | | ?# + "" # # | | ########### """ # # | | # ## "" # # | | # ## """ # # | | ? """ ## """ # # | | #""""" # """ #g@ # | | #""""" + " # Y # | | #""""" # + " # | | # """ # # # | | # ########### # # | | # ! #??# # # # | | ##########??#!!! + # "Y" # | | ????????????#!! # # """ # | | ????????????#!!! # ######## | | ????????????# ] + #????? | | ????????????# # #????? | | ????????????##############????? | | ??????????????????????????????? | | ??????????????????????????????? | | ??????????????????????????????? | | ??????????????????????????????? | | | | | | | | | | | | | | | | | | | +----------------------------------------------------+ Best States ------------- Heat Dissipation 39 Energy Generation 19 Energy Capacity 310 Matter Stores 300 Matter Capacity 300 Sight Range 16 Terrain Scan Density 10 ECM Strength 2 Power Shielding 33 Evasion (%) 55 Recoil Reduction 3 Item Schematics ----------------- None Robot Schematics ------------------ None Fabricated ------------ Nothing Repaired ---------- Nothing Studied --------- None Alien Tech Used ----------------- None Achievements -------------- Crack Shot First Step to Greatness For Emergencies Only One Hack Too Far Organ Harvest Overwhelming Resistances Are Futile Storm Trooper There's More Where That Came From Uninvited Guest Challenges ------------ None Game ------ Seed EfficiencyShrapnelJetlance Manual? 0 Play Time 00:34:21 Cumulative 0.5 hours Start 2025.12.02 @ 19:17:34 End 2025.12.02 @ 19:51:48 Sessions 1 Manual Loads 0 Difficulty Rogue Special Mode None Game No. 1 Rogue 1 Adventurer 0 Explorer 0 Win Type - Total 0 Types 0/0/0/0/0/0/0/0/0/0 Lore% 0 Gallery% 1 Achievement% 2 Wizard Run 0 Options --------- Layout 1 ASCII 0 Keyboard 0 Movement Mouse Keybinds 0 Fullscreen 2 Font 24/Crisp Map View 50x35 Zoom Use 0% Tactical HUD 0 Map Filters NONE Filters NONE Steam 1 RUN: c2d68eb6-0ba8-448e-80ac-8f65c4379bd1